bitfinex-derivatives/quotes_ETHF0:USTF0_20250902
["timestamp","ask_amount","ask_price","bid_price","bid_amount"]
[1756812535070,0.3028,4375.6,4375.2,0.6318]
[1756812535071,0.696,4375.6,4375.5,0.693]
[1756812537378,0.696,4375.6,4375.5,0.4908]
[1756812540980,0.3028,4375.5,4374.7,0.2942]
[1756812541180,0.1937,4374.9,4374.8,1.15457]
[1756812541376,0.4965,4374.9,4374.8,0.926]
[1756812541882,0.1937,4374.9,4374.8,0.926]
[1756812542182,0.1937,4374.9,4374.8,0.693]
[1756812542381,0.1937,4374.9,4374.8,0.926]
[1756812543688,0.4965,4374.9,4374.8,0.926]
[1756812544183,0.1937,4374.9,4374.8,0.926]
[1756812544387,0.4965,4374.9,4374.8,0.926]
[1756812545783,0.696,4374.9,4374.8,0.693]
[1756812545983,0.696,4374.9,4374.8,0.926]
[1756812547982,8.93978514,4374.9,4374.2,0.33967433]
[1756812548185,3.9038,4374.3,4374.2,0.33967433]
[1756812548674,4.47771229,4374.3,4374.2,0.33967433]
[1756812551289,3.9038,4374.3,4374.2,0.33967433]
[1756812551489,4.47684364,4374.3,4374.2,0.33967433]
[1756812552283,3.9038,4374.3,4374.2,0.33967433]
[1756812552787,3.9038,4374.3,4374.2,0.62637433]
[1756812552988,3.9038,4374.3,4374.2,0.82957433]
[1756812556994,3.9038,4374.3,4374.2,0.62637433]
[1756812557496,4.1368,4374.3,4374.2,1.02437433]
[1756812557691,3.4015,4374.3,4374.2,1.02437433]
[1756812559495,3.6862,4374.3,4374.2,1.02437433]
[1756812560992,3.884,4374.3,4374.2,1.02437433]
[1756812561188,3.884,4374.3,4374.2,0.33967433]
[1756812562290,0.2847,4374.2,4374.0,1.66666667]
[1756812562497,0.9142,4374.1,4374.0,1.66666667]
[1756812565295,0.9142,4374.1,4373.5,0.2867]
[1756812565602,0.9142,4374.1,4372.6,40.8]
[1756812565603,0.6812,4373.0,4372.9,0.6847]
[1756812565901,0.1987,4373.0,4372.9,0.6847]
[1756812567003,3.2078,4373.2,4372.9,0.398]
[1756812567193,3.2078,4373.2,4373.0,0.2867]
[1756812567393,3.4065,4373.2,4373.1,0.398]
[1756812567594,3.4065,4373.2,4373.1,0.6847]
[1756812568194,3.6043,4373.2,4372.4,0.2867]
[1756812568403,0.6812,4373.1,4373.0,0.4899]
[1756812569191,0.6812,4373.1,4371.6,0.18607418]
[1756812569192,0.3965,4372.1,4372.0,1.66666667]
[1756812569403,0.3965,4372.1,4372.0,1.50896667]
[1756812569404,4.17639062,4372.1,4372.0,1.50896667]
[1756812569607,0.3965,4372.1,4372.0,1.71216667]
[1756812569904,3.6043,4372.1,4372.0,1.71216667]
[1756812570906,3.6043,4372.1,4372.0,2.02326667]
[1756812571704,3.2078,4372.6,4372.5,0.2032]
[1756812571899,0.22871001,4372.5,4372.0,1.50896667]
[1756812572201,3.2078,4372.1,4372.0,1.50896667]
[1756812572405,3.4408,4372.1,4371.7,0.2867]
[1756812572609,0.22875,4372.0,4371.1,0.2867]
[1756812572909,3.2078,4371.6,4371.5,0.6847]
[1756812573205,3.2078,4371.6,4371.5,0.801]
[1756812577404,3.2078,4372.8,4372.0,0.5143]
[1756812577607,3.2078,4372.8,4372.7,0.6847]
[1756812583716,3.2078,4372.8,4372.2,0.3097]
[1756812583906,3.2078,4372.3,4371.7,0.3097]
[1756812584110,3.2078,4372.3,4371.8,0.3097]
[1756812584616,3.2078,4372.3,4371.9,0.3097]
[1756812584814,3.2078,4372.3,4372.0,0.2044]
[1756812585009,3.2078,4372.3,4371.6,0.3097]
[1756812587212,3.2078,4372.3,4371.6,0.2044]
[1756812587417,3.2078,4372.3,4371.8,0.3097]
[1756812587722,3.2078,4372.3,4371.6,0.5447]
[1756812587916,3.2078,4372.3,4371.7,0.2044]
[1756812588511,3.2078,4372.3,4371.8,0.3097]
[1756812588716,3.2078,4372.3,4371.9,0.2044]
[1756812588914,3.2078,4372.3,4372.1,0.3097]
[1756812589114,3.2078,4372.3,4372.2,0.5141]
[1756812589311,3.2078,4372.3,4371.8,0.3097]
[1756812589721,3.2078,4372.3,4371.7,0.4394]
[1756812589922,3.2078,4372.3,4371.5,0.1163]
[1756812590218,3.2078,4372.3,4371.7,0.3097]
[1756812590420,3.2078,4372.3,4371.7,0.5141]
[1756812590619,3.2078,4372.3,4371.8,0.2044]
[1756812590818,3.2078,4372.3,4372.0,0.5141]
[1756812591018,3.2078,4372.3,4370.9,0.5141]
[1756812591019,1.03400848,4372.2,4370.9,0.5141]
[1756812591218,3.2078,4371.5,4370.9,0.3097]
[1756812591419,3.2078,4371.0,4370.9,0.3097]
[1756812592436,3.2078,4371.0,4370.1,0.2044]
[1756812592633,3.2078,4371.0,4370.3,0.3097]
[1756812593232,3.2078,4371.0,4370.4,0.3097]
[1756812593434,3.2078,4371.0,4370.4,0.5141]
[1756812593638,3.2078,4371.0,4370.9,0.2044]
[1756812593935,3.2078,4371.0,4370.9,0.5141]
[1756812594532,3.2078,4371.0,4370.9,0.7206]
[1756812594731,3.2078,4371.5,4371.4,0.7206]
[1756812595438,3.2078,4372.0,4371.4,0.7206]
[1756812595638,3.2078,4372.0,4371.5,0.3097]
[1756812595932,3.2078,4372.0,4371.2,0.3097]
[1756812596235,3.2078,4372.0,4371.3,0.5141]
[1756812596435,3.2078,4372.0,4371.4,0.5141]
[1756812596836,3.2078,4372.0,4371.5,0.2044]
[1756812597031,3.2078,4372.0,4371.7,0.3097]
[1756812597238,0.57191849,4371.9,4371.2,0.3097]
[1756812597438,3.2078,4372.0,4371.2,0.3097]
[1756812597742,3.2078,4372.0,4371.9,0.5141]
[1756812597929,3.77972156,4372.0,4371.9,0.5141]
[1756812598940,3.77972156,4372.0,4371.9,0.3097]
[1756812600341,3.77972156,4372.0,4371.9,0.5141]
[1756812601341,3.2118,4372.0,4371.9,0.5141]
[1756812602844,3.2118,4372.0,4371.9,0.7206]
[1756812603039,3.2098,4372.0,4371.9,0.7206]
[1756812603840,3.2118,4372.0,4371.2,0.3097]
[1756812604246,3.2118,4372.0,4371.9,0.7206]
[1756812605848,3.2118,4372.0,4371.9,0.5141]
[1756812606049,3.2131,4372.0,4371.9,0.3097]
[1756812607037,3.2131,4372.0,4371.9,0.5141]
[1756812607242,3.2118,4372.0,4371.9,0.7206]
[1756812607951,3.2078,4372.0,4371.9,0.7206]
[1756812608245,3.2098,4372.5,4372.0,0.6348]
[1756812608449,3.2118,4372.5,4372.4,0.2044]
[1756812608652,3.2118,4372.5,4372.4,0.5141]
[1756812609246,3.2118,4372.5,4372.4,0.7206]
[1756812609639,3.2078,4372.5,4372.4,0.7206]
[1756812610746,3.2078,4373.0,4372.9,0.4824]
[1756812610950,3.4428,4373.0,4372.1,40.8]
[1756812611151,3.4428,4373.0,4372.4,0.4824]
[1756812611340,3.4428,4373.0,4372.2,0.4824]
[1756812611651,3.4428,4373.0,4372.3,0.2889]
[1756812611850,3.4428,4373.0,4372.3,0.1935]
[1756812612050,3.4428,4373.0,4372.4,0.1935]
[1756812612250,3.4428,4373.0,4372.1,0.2889]
[1756812614444,3.4428,4373.0,4372.2,0.4824]
[1756812614639,3.4428,4373.0,4372.4,0.4824]
[1756812614844,3.4428,4373.0,4372.0,0.3121]
[1756812614845,3.2078,4372.5,4372.0,0.3121]
[1756812615044,3.2078,4372.5,4372.0,0.2889]
[1756812615254,3.2078,4372.5,4371.8,0.2889]
[1756812615447,3.2078,4372.5,4371.9,0.2889]
[1756812615842,3.2078,4372.5,4371.9,0.1935]
[1756812616151,3.2078,4372.5,4372.1,0.1935]
[1756812616348,3.2078,4372.5,4372.3,0.2889]
[1756812616540,3.2078,4372.5,4371.5,3.5614]
[1756812616746,3.2078,4372.5,4371.7,0.2889]
[1756812616946,3.2078,4372.5,4371.8,0.2889]
[1756812617146,3.2078,4372.5,4371.9,0.2889]
[1756812617352,3.2078,4372.5,4372.0,0.2889]
[1756812617553,3.2078,4372.5,4371.6,0.235]
[1756812617554,3.2078,4372.5,4371.7,0.2889]
[1756812618251,3.2078,4372.5,4371.7,0.5239]
[1756812618454,3.2078,4372.5,4371.8,0.4824]
[1756812618756,3.2078,4372.5,4372.0,0.1935]
[1756812618957,3.2078,4372.5,4371.7,0.235]
[1756812619256,3.2078,4372.5,4371.8,0.2889]
[1756812619549,3.2078,4372.5,4371.9,0.1935]
[1756812619754,0.57219893,4372.4,4372.1,0.2889]
[1756812620056,3.2078,4372.5,4371.7,0.235]
[1756812620351,3.2078,4372.5,4371.8,0.2889]
[1756812620652,3.2078,4372.5,4371.9,0.2889]
[1756812620853,0.57219483,4372.4,4372.0,0.3068]
[1756812621054,3.2078,4372.5,4372.2,0.2889]
[1756812621255,3.2078,4372.5,4372.1,0.4824]
[1756812621451,3.2078,4372.5,4372.1,0.2889]
[1756812621750,0.57225898,4372.4,4371.8,0.2889]
[1756812622055,3.2078,4372.5,4371.7,0.234]
[1756812622257,0.57225883,4372.4,4371.8,0.4824]
[1756812622451,3.2078,4372.5,4371.8,0.1935]
[1756812622755,0.5723973,4372.4,4372.0,0.2889]
[1756812622955,3.2078,4372.5,4372.1,0.2889]
[1756812623158,0.57239426,4372.4,4371.8,0.1935]
[1756812623352,3.2078,4372.5,4372.0,0.4824]
[1756812623658,0.57256804,4372.4,4372.2,0.2889]
[1756812623957,3.2078,4372.5,4371.8,0.2889]
[1756812624157,0.57256778,4372.4,4371.8,0.234]
[1756812624455,0.57256778,4372.3,4371.9,0.4824]
[1756812624651,3.2078,4372.5,4372.1,0.2889]
[1756812624850,3.2078,4372.5,4371.5,3.3264]
[1756812624851,3.2078,4372.5,4372.3,0.4932]
[1756812625156,3.2078,4372.5,4372.4,0.6867]
[1756812628251,3.2078,4372.5,4372.4,0.2889]
[1756812628854,3.2078,4372.5,4372.4,0.4824]
[1756812629252,3.78081081,4372.5,4372.4,0.4824]
[1756812629956,3.7808196,4372.5,4372.4,0.4824]
[1756812630157,3.2078,4372.5,4372.4,0.6867]
[1756812631162,3.2078,4372.5,4372.4,41.4867]
[1756812633661,3.2078,4372.5,4372.4,41.7207]
[1756812635957,3.2078,4373.4,4372.5,0.1133]
[1756812636152,3.2078,4373.4,4373.3,0.4824]
[1756812636355,3.78090939,4373.4,4373.3,0.2889]
[1756812637265,3.78090939,4373.4,4373.3,0.6867]
[1756812637463,3.2078,4373.4,4373.3,0.6867]
[1756812638463,3.2078,4373.4,4373.3,0.9207]
[1756812638962,3.2078,4373.4,4373.3,0.6867]
[1756812639160,3.2078,4373.4,4373.3,0.9207]
[1756812640457,3.2078,4373.9,4373.3,0.9207]
[1756812640660,3.2078,4373.9,4373.8,0.4094]
[1756812640863,3.2078,4373.9,4373.8,0.6956]
[1756812643461,3.2078,4373.9,4373.8,0.9296]
[1756812643959,3.2078,4373.9,4373.8,0.6956]
[1756812644157,3.2078,4373.9,4373.8,0.9296]
[1756812645469,3.2078,4373.9,4373.8,0.6956]
[1756812645671,3.2078,4373.9,4373.8,0.9296]
[1756812646165,3.2078,4373.9,4373.8,0.2862]
[1756812646361,7.2078,4373.9,4373.1,0.2862]
[1756812646564,3.2078,4373.2,4373.1,0.2862]
[1756812647173,3.2078,4373.7,4373.1,41.0862]
[1756812647470,3.2078,4373.7,4373.1,0.2862]
[1756812647662,3.2078,4373.7,4373.1,0.4949]
[1756812648065,3.2078,4373.7,4373.0,0.233]
[1756812648266,3.2078,4373.7,4373.1,0.2862]
[1756812648775,3.2078,4373.2,4373.1,0.2862]
[1756812649272,3.2078,4373.2,4372.6,0.2862]
[1756812649574,3.2078,4373.2,4372.7,0.2862]
[1756812649768,3.2078,4373.2,4372.8,0.2862]
[1756812649968,3.2078,4373.2,4372.7,0.2862]
[1756812650263,3.2078,4373.2,4372.6,0.234]
[1756812650469,3.2078,4373.2,4372.7,0.2862]
[1756812650870,3.2078,4373.2,4372.8,0.2862]
[1756812651665,3.2078,4373.2,4372.5,0.1133]
[1756812651666,3.2078,4373.2,4372.6,0.4427]
[1756812651865,3.2078,4373.2,4372.7,0.2862]
[1756812652066,3.2078,4373.2,4372.6,0.5202]
[1756812652274,3.2078,4373.2,4372.6,0.7289]
[1756812652670,3.2078,4373.2,4372.6,0.4427]
[1756812652871,3.2078,4373.2,4372.8,0.2862]
[1756812653064,3.2078,4373.2,4373.1,0.2087]
[1756812653267,3.2078,4373.2,4373.1,0.4949]
[1756812657073,3.2078,4373.2,4373.1,0.6956]
[1756812657279,3.2078,4373.2,4373.1,0.9286]
[1756812660179,3.2078,4373.2,4373.1,0.6956]
[1756812660383,3.2078,4373.2,4373.1,0.9286]
[1756812664179,3.2078,4373.9,4373.2,0.2862]
[1756812664482,0.57493752,4373.8,4373.3,0.2862]
[1756812664682,3.2078,4373.9,4373.1,0.4417]
[1756812664885,3.2078,4373.9,4373.2,0.2862]
[1756812665085,3.2078,4373.9,4373.2,0.4949]
[1756812665284,0.57496004,4373.8,4373.3,0.2087]
[1756812665577,3.2078,4373.9,4373.1,0.4417]
[1756812665784,0.57503785,4373.8,4373.2,0.2087]
[1756812665982,3.2078,4373.9,4373.4,0.2862]
[1756812666183,0.57503951,4373.8,4373.2,0.2862]
[1756812666384,3.2078,4373.9,4373.3,0.2862]
[1756812666686,0.57507905,4373.8,4373.4,0.5192]
[1756812666881,3.4408,4373.9,4372.6,0.2862]
[1756812667079,0.57507912,4373.8,4372.8,0.2862]
[1756812667280,0.22867,4373.8,4372.8,0.4949]
[1756812667481,3.4408,4373.9,4373.0,0.4061]
[1756812667685,3.4408,4373.9,4373.1,0.2862]
[1756812667686,0.57508745,4373.8,4373.1,0.2862]
[1756812667887,3.66945001,4373.9,4373.1,0.4949]
[1756812668183,0.57508759,4373.8,4373.3,0.2862]
[1756812668388,3.66945001,4373.9,4373.3,0.2862]
[1756812668590,0.57508711,4373.8,4373.3,0.2862]
[1756812668785,3.4408,4373.9,4373.3,0.2862]
[1756812668986,0.0036,4373.4,4373.3,0.2862]
[1756812669186,0.0047,4373.4,4373.3,0.2862]
[1756812669385,0.0011,4373.3,4372.9,0.233]
[1756812669590,0.0036,4373.0,4372.9,0.5241]
[1756812669986,0.0036,4373.0,4372.9,0.7164]
[1756812670588,0.0036,4373.0,4372.9,0.4834]
[1756812670794,0.0036,4373.0,4372.9,0.7164]
[1756812671394,0.0047,4373.0,4372.9,0.2911]
[1756812671591,0.0036,4373.0,4372.9,0.4834]
[1756812671894,0.0036,4373.0,4372.9,0.2911]
[1756812672296,0.0036,4373.0,4372.9,0.4834]
[1756812674798,0.0036,4373.0,4372.9,0.6889]
[1756812676594,3.2078,4373.1,4373.0,0.4154]
[1756812676896,3.2078,4373.1,4373.0,0.8132]
[1756812678196,3.2078,4374.0,4373.9,0.3978]
[1756812678392,3.98178538,4374.0,4373.9,0.6889]
[1756812678589,4.19078538,4374.0,4373.9,0.6889]
[1756812679486,4.48098538,4374.0,4373.1,40.8]
[1756812679692,1.33195573,4375.0,4373.4,0.6889]
[1756812679693,3.6149,4373.5,4373.4,0.6889]
[1756812679892,0.4071,4373.5,4373.4,0.6889]
[1756812680293,0.6973,4373.5,4373.4,0.6889]
[1756812680700,3.9051,4373.5,4373.4,0.6889]
[1756812681394,3.9051,4373.5,4373.4,0.4834]
[1756812681599,3.9051,4373.5,4373.4,0.2911]
[1756812681789,3.9051,4373.5,4373.1,0.233]
[1756812681995,0.4071,4372.8,4372.7,0.6889]
[1756812682293,0.6973,4372.8,4372.7,0.6889]
[1756812685102,0.4071,4372.8,4372.7,0.6889]
[1756812687198,3.2078,4373.0,4372.8,0.2911]
[1756812687405,0.233,4373.5,4373.0,0.1243]
[1756812687406,3.2078,4373.5,4373.0,0.1243]
[1756812687709,0.77372889,4373.4,4373.3,0.6889]
[1756812688002,0.98272889,4373.4,4373.3,0.6889]
[1756812689797,0.4071,4373.4,4373.3,0.6889]
[1756812690005,0.98278054,4373.4,4373.3,0.6889]
[1756812690610,0.98279778,4373.4,4373.3,0.6889]
[1756812690799,0.4071,4373.4,4373.3,0.6889]
[1756812691101,0.1981,4373.4,4373.3,0.6889]
[1756812693902,3.2078,4373.5,4373.4,0.2911]
[1756812694101,3.2078,4373.5,4373.4,0.6889]
[1756812695612,3.731,4374.0,4373.4,0.3978]
[1756812695913,0.98304672,4373.9,4373.8,0.1923]
[1756812696116,1.27324672,4373.9,4373.8,0.4834]
[1756812697011,1.27324672,4373.9,4373.8,0.6889]
[1756812697515,0.98304672,4373.9,4373.8,0.6889]
[1756812697713,0.77404672,4373.9,4373.8,0.6889]
[1756812697912,3.2078,4374.0,4373.8,0.6889]
[1756812698214,3.2078,4374.0,4373.9,0.6889]
[1756812698415,3.4059,4374.0,4373.9,0.6889]
[1756812701813,0.1981,4374.0,4373.9,0.6889]
[1756812702408,3.4059,4374.0,4373.9,0.6889]
[1756812702815,3.6111,4374.0,4373.9,0.6889]
[1756812703405,3.9249,4374.0,4373.9,0.6889]
[1756812703717,3.6111,4374.0,4373.9,0.6889]
[1756812707120,3.9249,4374.0,4373.9,0.6889]
[1756812708021,3.6111,4374.0,4373.9,0.6889]
[1756812708518,3.9249,4374.0,4373.9,0.6889]
[1756812713721,3.9249,4374.0,4373.9,0.4834]
[1756812721115,3.6111,4374.0,4373.2,0.2929]
[1756812721319,0.7117,4373.3,4373.2,0.52155]
[1756812721520,0.7117,4373.3,4373.2,0.2929]
[1756812721722,0.7117,4373.3,4373.2,0.5259]
[1756812722527,0.7117,4373.3,4373.2,0.2929]
[1756812722729,0.7117,4373.3,4373.2,0.5259]
[1756812723028,0.7117,4373.3,4373.2,0.7297]
[1756812723935,0.7117,4373.3,4373.2,0.4967]
[1756812724136,0.7117,4373.3,4373.2,0.7297]
[1756812725033,0.7117,4373.3,4373.2,0.4967]
[1756812725235,0.3138,4373.9,4373.2,0.86766]
[1756812725433,3.2078,4374.0,4373.2,0.639]
[1756812725637,3.6057,4374.0,4373.9,0.2038]
[1756812725937,4.49475126,4374.0,4373.9,0.4967]
[1756812729940,4.18095126,4374.0,4373.9,0.6989]
[1756812730141,4.18095126,4374.0,4373.8,0.233]
[1756812730142,3.6131,4374.5,4374.4,0.1978]
[1756812730440,3.9207,4374.5,4374.4,0.2926]
[1756812730636,3.9207,4374.5,4374.1,0.5256]
[1756812730942,0.4053,4374.2,4374.1,0.5256]
[1756812731130,0.7129,4374.2,4374.1,0.5256]
[1756812731330,0.4053,4374.2,4373.8,0.233]
[1756812731542,0.4053,4373.9,4373.8,0.233]
[1756812731743,0.7129,4373.9,4373.8,0.5256]
[1756812732139,0.4053,4373.9,4373.8,0.9301]
[1756812732742,0.7129,4373.9,4373.8,0.9301]
[1756812733742,0.4053,4373.9,4373.8,0.9301]
[1756812735147,3.5154,4374.5,4373.8,0.6375]
[1756812735447,0.2023,4374.0,4373.9,0.6971]
[1756812735748,3.5154,4374.5,4373.9,0.6971]
[1756812735943,3.7177,4374.5,4374.4,0.1978]
[1756812736249,3.6131,4374.5,4374.4,0.6971]
[1756812736842,3.4101,4374.5,4374.4,0.6971]
[1756812737750,3.4101,4374.5,4374.4,0.9301]
[1756812738141,3.2078,4374.5,4374.4,0.9301]
[1756812738547,3.4101,4374.5,4374.4,0.6971]
[1756812738847,3.4101,4374.5,4374.4,0.9301]
[1756812740750,0.2023,4374.5,4374.4,0.9301]
[1756812741541,0.3076,4374.1,4373.9,0.2926]
[1756812741847,0.7129,4373.3,4373.2,0.5256]
[1756812742350,0.7129,4373.3,4373.2,0.233]
[1756812742546,0.3076,4373.2,4372.6,0.2926]
[1756812742750,0.7129,4372.7,4372.6,0.2926]
[1756812743145,0.7129,4372.7,4372.6,0.4904]
[1756812743749,0.4053,4372.7,4372.6,0.6971]
[1756812744241,0.2023,4372.7,4372.6,0.6971]
[1756812744748,0.2023,4372.7,4372.6,0.9301]
[1756812745248,3.2078,4373.5,4372.6,0.6375]
[1756812745444,0.7129,4373.7,4373.6,0.1978]
[1756812745651,0.7129,4373.7,4373.6,0.4904]
[1756812746554,0.4053,4373.7,4373.6,0.6971]
[1756812747949,0.7129,4373.7,4373.6,0.6971]
[1756812752454,0.4053,4373.7,4373.6,0.6971]
[1756812759361,0.4053,4373.7,4373.6,0.9301]
[1756812759862,0.4053,4373.7,4373.6,0.6971]
[1756812760064,0.4053,4373.7,4373.6,0.9301]
[1756812762364,0.3065,4374.2,4373.6,0.6375]
[1756812762554,0.7027,4374.2,4374.1,0.197]
[1756812762758,0.3065,4374.1,4373.6,0.5421]
[1756812762960,0.1911,4373.8,4373.7,0.3091]
[1756812763164,0.3962,4373.8,4373.7,0.6993]
[1756812763360,0.3962,4373.8,4372.9,3.2078]
[1756812763361,4.93134,4373.8,4373.1,0.3091]
[1756812763561,0.2051,4373.0,4372.9,0.233]
[1756812763769,0.3962,4373.0,4372.9,0.9323]
[1756812764362,0.2051,4373.0,4372.9,0.9323]
[1756812765671,0.3065,4373.3,4372.9,0.9323]
[1756812765860,0.7027,4373.3,4373.2,0.3902]
[1756812766057,0.7027,4373.3,4373.2,0.5061]
[1756812766760,3.2078,4374.5,4374.0,0.425]
[1756812766965,3.604,4374.5,4374.4,0.6993]
[1756812768369,3.4129,4374.5,4374.4,0.6993]
[1756812768569,3.2078,4374.5,4374.4,0.6993]
[1756812768961,3.4129,4374.5,4374.4,0.6993]
[1756812770069,3.604,4374.5,4374.4,0.6993]
[1756812770273,0.7027,4374.5,4374.4,0.6993]
[1756812773675,0.3962,4374.5,4374.4,0.6993]
[1756812775275,0.3962,4374.5,4374.4,0.9323]
[1756812776174,0.2051,4374.5,4374.4,0.9323]
[1756812776477,0.3065,4374.8,4374.5,0.3091]
[1756812776674,0.7027,4374.8,4374.7,0.6993]
[1756812777074,0.3962,4374.8,4374.7,0.6993]
[1756812780382,0.7027,4374.8,4374.7,0.6993]
[1756812780580,0.3962,4374.8,4374.7,0.6993]
[1756812781382,0.7027,4374.8,4374.7,0.6993]
[1756812781577,0.7027,4374.8,4374.7,0.5061]
[1756812781779,0.7027,4374.8,4374.7,0.6993]
[1756812782782,0.3962,4374.8,4374.7,0.6993]
[1756812782983,0.2051,4374.8,4374.7,0.6993]
[1756812784790,3.2078,4375.1,4374.8,0.3091]
[1756812784986,3.4129,4375.1,4375.0,0.6993]
[1756812785491,3.9105,4375.1,4375.0,0.6993]
[1756812785685,3.2078,4375.1,4375.0,0.6993]
[1756812785877,3.9105,4375.6,4375.5,0.3091]
[1756812786083,4.48395682,4375.6,4375.5,0.3091]
[1756812786577,4.48395682,4375.6,4375.5,0.5061]
[1756812786983,4.17745682,4375.6,4375.5,0.6993]
[1756812787185,3.4129,4375.6,4375.5,0.6993]
[1756812787385,3.9105,4375.6,4375.5,0.5061]
[1756812787590,3.9105,4375.6,4375.5,0.3091]
[1756812787985,3.9105,4375.6,4375.5,0.5061]
[1756812791389,3.903,4375.6,4375.5,0.6993]
[1756812793299,3.4129,4375.6,4375.5,0.6993]
[1756812793799,3.2078,4375.6,4375.5,0.8136]
[1756812794002,3.2078,4375.6,4375.5,0.6993]
[1756812794191,3.3988,4375.6,4375.5,0.6993]
[1756812794499,3.2078,4375.6,4375.5,0.8136]
[1756812794996,3.2078,4375.9,4375.6,0.2927]
[1756812795198,3.2078,4375.9,4375.8,0.4046]
[1756812795498,3.3988,4375.9,4375.8,0.6973]
[1756812795696,3.5972,4375.9,4375.8,0.6973]
[1756812796099,3.8962,4375.9,4375.8,0.6973]
[1756812798401,3.5972,4375.9,4375.8,0.6973]
[1756812799196,0.3894,4375.9,4375.8,0.6973]
[1756812799402,0.6884,4375.9,4375.8,0.6973]
[1756812802009,0.299,4375.8,4375.5,40.8]
[1756812802205,0.6884,4375.6,4375.5,41.0927]
[1756812802399,0.3894,4375.6,4375.5,41.0927]
[1756812802801,0.3894,4375.6,4375.5,0.6973]
[1756812803002,0.6884,4375.6,4375.5,0.6973]
[1756812803208,0.3894,4375.6,4375.5,0.6973]
[1756812805013,0.191,4375.6,4375.5,0.6973]
[1756812805206,3.5068,4376.0,4375.5,0.8116]
[1756812805510,0.3894,4375.6,4375.5,0.6973]
[1756812807304,3.2078,4376.0,4375.6,0.2927]
[1756812807504,3.2078,4376.0,4375.9,0.6973]
[1756812807806,3.3988,4376.0,4375.9,0.6973]
[1756812809314,3.5972,4376.0,4375.9,0.6973]
[1756812809606,3.8962,4376.0,4375.9,0.6973]
[1756812811010,3.5972,4376.0,4375.9,0.6973]
[1756812813218,4.17144514,4376.0,4375.9,0.6973]
[1756812816020,4.47044514,4376.0,4375.9,0.6973]
[1756812816427,4.47044514,4376.0,4375.9,0.4954]
[1756812816721,0.4974,4375.5,4375.4,0.233]
[1756812816925,0.6884,4375.5,4375.4,0.233]
[1756812817221,0.299,4375.4,4375.3,0.2927]
[1756812817421,0.6884,4375.4,4375.3,0.7284]
[1756812817624,0.3894,4375.4,4375.3,0.9303]
[1756812817925,0.6884,4375.4,4375.3,0.9303]
[1756812818423,0.3894,4375.4,4375.3,0.9303]
[1756812819025,0.6776,4375.4,4375.3,0.9303]
[1756812820226,0.3894,4375.4,4375.3,0.9303]
[1756812821132,0.6776,4375.4,4375.3,0.9303]
[1756812822032,0.6776,4375.4,4375.3,0.4954]
[1756812822227,0.6776,4375.4,4375.3,0.7284]
[1756812824734,0.2004,4375.4,4375.3,0.6365]
[1756812825133,0.2004,4375.4,4375.3,0.9237]
[1756812827940,3.496,4376.0,4375.4,0.2872]
[1756812828140,1.25695858,4375.9,4375.8,0.6837]
[1756812829233,1.25714677,4375.9,4375.8,0.6837]
[1756812829732,0.2004,4375.8,4375.7,0.3965]
[1756812829938,3.4082,4375.8,4375.7,0.6837]
[1756812831136,4.17681663,4375.8,4375.7,0.6837]
[1756812831829,4.46501663,4375.8,4375.7,0.6837]
[1756812832036,4.46501663,4375.8,4375.7,0.2872]
[1756812832228,4.46501663,4375.8,4375.4,0.2872]
[1756812832426,0.6823,4375.5,4374.1,3.2078]
[1756812832634,3.8901,4375.2,4375.1,0.4829]
[1756812832937,3.8901,4375.2,4375.1,0.6837]
[1756812833338,3.6019,4375.2,4375.1,0.6837]
[1756812833937,0.3941,4374.2,4374.1,0.4829]
[1756812834140,0.3941,4374.2,4374.1,0.6837]
[1756812834639,0.6823,4374.2,4374.1,0.6837]
[1756812837844,0.6823,4374.2,4374.1,0.4829]
[1756812838038,0.3941,4374.2,4373.8,0.2872]
[1756812838239,0.2004,4373.8,4373.7,0.9167]
[1756812838439,0.2004,4373.8,4373.7,0.6837]
[1756812841045,3.2078,4373.9,4373.8,0.6837]
[1756812843149,3.4082,4373.9,4373.8,0.6837]
[1756812844247,3.6019,4373.9,4373.8,0.6837]
[1756812844442,3.8901,4373.9,4373.8,0.6837]
[1756812847148,3.8901,4373.9,4373.8,0.4829]
[1756812848555,3.6019,4373.9,4373.8,0.6837]
[1756812848855,3.4082,4373.9,4373.8,0.6837]
[1756812852762,3.6024,4373.9,4373.8,0.6837]
[1756812853661,0.3946,4373.9,4373.8,0.6837]
[1756812855062,0.6947,4373.9,4373.8,0.6837]
[1756812855264,3.9025,4373.9,4373.8,0.4829]
[1756812856368,3.9025,4373.9,4373.8,0.2872]
[1756812856562,3.9025,4373.9,4373.8,0.233]
[1756812857162,3.9025,4373.9,4373.8,0.5381]
[1756812858362,3.9025,4373.9,4373.1,0.3051]
[1756812858567,0.6886,4373.2,4372.6,0.3051]
[1756812858866,3.2078,4373.4,4372.8,0.3051]
[1756812858867,0.6886,4372.9,4372.8,0.3051]
[1756812859665,0.6886,4372.9,4372.7,0.233]
[1756812859867,0.3001,4372.8,4372.7,0.5381]
[1756812860262,0.6886,4372.8,4372.7,0.5381]
[1756812862270,0.6886,4372.8,4372.7,0.3051]
[1756812862568,4.6886,4372.8,4372.4,0.3051]
[1756812862755,0.3001,4372.7,4372.4,0.5381]
[1756812862958,0.6886,4372.5,4371.9,76.9298]
[1756812863157,0.3885,4372.2,4372.1,0.3051]
[1756812863360,0.6886,4372.2,4372.1,0.3051]